fUSD/lending_fUSD_20240630
["ID","MTS","AMOUNT","RATE_DAILY","PERIOD"]
[330750340,1719755479392,-1182.32,0.00014136,3]
[330750341,1719755479401,-500.0,0.00014136,3]
[330750342,1719755479412,-500.0,0.00014136,3]
[330750343,1719755479425,-500.0,0.00014136,3]
[330750344,1719755479434,-500.0,0.00014136,3]
[330750345,1719755479443,-500.0,0.00014136,3]
[330750346,1719755479452,-500.0,0.00014136,3]
[330750347,1719755479461,-500.0,0.00014136,3]
[330750348,1719755479470,-500.0,0.00014136,3]
[330750349,1719755479479,-500.0,0.00014136,3]
[330750350,1719755479490,-151.0,0.00014136,2]
[330750351,1719755479499,-500.0,0.00014136,3]
[330750352,1719755479510,-500.0,0.00014136,3]
[330750353,1719755479521,-418.62,0.00014136,3]
[330750354,1719755479531,-500.0,0.00014136,3]
[330750355,1719755479543,-505.0,0.00014136,3]
[330750356,1719755479552,-500.0,0.00014136,3]
[330750357,1719755479562,-500.0,0.00014136,3]
[330750358,1719755479571,-500.0,0.00014136,3]
[330750359,1719755479582,-500.0,0.00014136,3]
[330750360,1719755479593,-276.931086,0.00014136,2]
[330750361,1719755479603,-500.0,0.00014136,3]
[330750362,1719755479612,-500.0,0.00014136,3]
[330750363,1719755479623,-500.0,0.00014136,3]
[330750364,1719755479632,-500.0,0.00014136,3]
[330750365,1719755479642,-500.0,0.00014136,3]
[330750366,1719755479651,-500.0,0.00014136,3]
[330750367,1719755479661,-500.0,0.00014136,3]
[330750368,1719755479671,-561.37,0.00014136,3]
[330750369,1719755479688,-189.9264,0.00014136,2]
[330750370,1719755479698,-500.0,0.00014136,3]
[330750371,1719755479708,-189.9264,0.00014136,2]
[330750372,1719755479718,-500.0,0.00014136,3]
[330750373,1719755479727,-500.0,0.00014136,3]
[330750374,1719755479737,-500.0,0.00014136,3]
[330750375,1719755479746,-500.0,0.00014136,3]
[330750376,1719755479756,-500.0,0.00014136,3]
[330750377,1719755479766,-500.0,0.00014136,3]
[330750378,1719755479776,-500.0,0.00014136,3]
[330750379,1719755479786,-500.0,0.00014136,3]
[330750380,1719755479796,-500.0,0.00014136,3]
[330750381,1719755479806,-900.1,0.00014136,3]
[330750382,1719755479816,-500.0,0.00014136,3]
[330750383,1719755479826,-500.0,0.00014136,3]
[330750384,1719755479835,-500.0,0.00014136,2]
[330750385,1719755479846,-500.0,0.00014136,3]
[330750386,1719755479855,-500.0,0.00014136,3]
[330750387,1719755479865,-694.23,0.00014136,3]
[330750388,1719755479874,-500.0,0.00014136,3]
[330750389,1719755479884,-500.0,0.00014136,3]
[330750390,1719755479894,-500.0,0.00014136,3]
[330750391,1719755479904,-500.0,0.00014136,3]
[330750392,1719755479914,-554.48,0.00014136,3]
[330750393,1719755479927,-500.0,0.00014136,3]
[330750394,1719755479939,-500.0,0.00014136,3]
[330750395,1719755479948,-500.0,0.00014136,3]
[330750396,1719755479958,-500.0,0.00014136,3]
[330750397,1719755479968,-500.0,0.00014136,3]
[330750398,1719755479978,-208.61324615,0.00014136,3]
[330750399,1719755479987,-151.0,0.00014136,2]
[330750400,1719755479998,-467.46,0.00014136,3]
[330750401,1719755480007,-500.0,0.00014136,3]
[330750402,1719755480017,-182.861239,0.00014136,2]
[330750403,1719755480027,-500.0,0.00014136,3]
[330750404,1719755480036,-500.0,0.00014136,3]
[330750405,1719755480046,-500.0,0.00014136,3]
[330750406,1719755480055,-182.861239,0.00014136,2]
[330750407,1719755480065,-500.0,0.00014136,3]
[330750408,1719755480074,-151.0,0.00014136,2]
[330750409,1719755480084,-194.6148,0.00014136,2]
[330750410,1719755480095,-500.0,0.00014136,3]
[330750411,1719755480105,-500.0,0.00014136,2]
[330750412,1719755480114,-500.0,0.00014136,3]
[330750413,1719755480124,-194.6148,0.00014136,2]
[330750414,1719755480134,-500.0,0.00014136,3]
[330750415,1719755480143,-500.0,0.00014136,3]
[330750416,1719755480152,-593.15,0.00014136,3]
[330750417,1719755480162,-500.0,0.00014136,3]
[330750418,1719755480171,-500.0,0.00014136,3]
[330750419,1719755480188,-500.0,0.00014136,3]
[330750420,1719755480198,-500.0,0.00014136,3]
[330750421,1719755480208,-500.0,0.00014136,3]
[330750422,1719755480218,-500.0,0.00014136,3]
[330750423,1719755480229,-500.0,0.00014136,3]
[330750424,1719755480240,-500.0,0.00014136,3]
[330750425,1719755480250,-500.0,0.00014136,3]
[330750426,1719755480260,-500.0,0.00014136,3]
[330750427,1719755480271,-690.44,0.00014136,3]
[330750428,1719755480280,-500.0,0.00014136,3]
[330750429,1719755480290,-502.26,0.00014136,3]
[330750430,1719755480302,-500.0,0.00014136,3]
[330750431,1719755480312,-500.0,0.00014136,3]
[330750432,1719755480322,-500.0,0.00014136,3]
[330750433,1719755480331,-500.0,0.00014136,3]
[330750434,1719755480341,-500.0,0.00014136,3]
[330750435,1719755480350,-500.0,0.00014136,3]
[330750436,1719755480359,-500.0,0.00014136,3]
[330750437,1719755480369,-500.0,0.00014136,3]
[330750438,1719755480378,-500.0,0.00014136,3]
[330750439,1719755480388,-757.41,0.00014136,3]
[330750440,1719755480397,-151.0,0.00014136,2]
[330750441,1719755480406,-500.0,0.00014136,3]
[330750442,1719755480416,-715.47,0.00014136,3]
[330750443,1719755480431,-500.0,0.00014136,3]
[330750444,1719755480440,-621.83,0.00014136,3]
[330750445,1719755480449,-500.0,0.00014136,3]
[330750446,1719755480458,-500.0,0.00014136,3]
[330750447,1719755480467,-571.76,0.00014136,3]
[330750448,1719755480477,-705.69,0.00014136,3]
[330750449,1719755480486,-500.0,0.00014136,3]
[330750450,1719755480495,-500.0,0.00014136,3]
[330750451,1719755480504,-500.0,0.00014136,3]
[330750452,1719755480514,-500.0,0.00014136,3]
[330750453,1719755480523,-500.0,0.00014136,3]
[330750454,1719755480532,-500.0,0.00014136,3]
[330750455,1719755480541,-500.0,0.00014136,3]
[330750456,1719755480552,-166.844814,0.00014136,2]
[330750457,1719755480561,-532.86,0.00014136,3]
[330750458,1719755480572,-166.844814,0.00014136,2]
[330750459,1719755480586,-675.41,0.00014136,3]
[330750460,1719755480596,-581.61,0.00014136,3]
[330750461,1719755480606,-663.09,0.00014136,3]
[330750462,1719755480616,-500.0,0.00014136,3]
[330750463,1719755480626,-500.0,0.00014136,3]
[330750464,1719755480636,-577.38,0.00014136,3]
[330750465,1719755480645,-500.0,0.00014136,3]
[330750466,1719755480654,-500.0,0.00014136,3]
[330750467,1719755480665,-500.0,0.00014136,3]
[330750468,1719755480680,-500.0,0.00014136,3]
[330750469,1719755480690,-500.0,0.00014136,3]
[330750470,1719755480699,-540.81,0.00014136,3]
[330750471,1719755480707,-168.491002,0.00014136,2]
[330750472,1719755480717,-500.0,0.00014136,3]
[330750473,1719755480726,-718.0,0.00014136,3]
[330750474,1719755480735,-500.0,0.00014136,3]
[330750475,1719755480744,-574.88,0.00014136,3]
[330750476,1719755480753,-168.491002,0.00014136,2]
[330750477,1719755480762,-500.0,0.00014136,3]
[330750478,1719755480771,-652.08,0.00014136,3]
[330750479,1719755480781,-500.0,0.00014136,3]
[330750480,1719755480790,-500.0,0.00014136,3]
[330750481,1719755480800,-920.11,0.00014136,3]
[330750482,1719755480809,-695.25,0.00014136,3]
[330750483,1719755480819,-525.835346,0.00014136,2]
[330750484,1719755480828,-510.24,0.00014136,3]
[330750485,1719755480837,-525.835346,0.00014136,2]
[330750486,1719755480847,-500.0,0.00014136,3]
[330750487,1719755480856,-500.0,0.00014136,3]
[330750488,1719755480866,-605.83,0.00014136,3]
[330750489,1719755480875,-677.83,0.00014136,3]
[330750490,1719755480884,-500.0,0.00014136,3]
[330750491,1719755480894,-500.0,0.00014136,3]
[330750492,1719755480903,-500.0,0.00014136,3]
[330750493,1719755480913,-151.0,0.00014136,2]
[330750494,1719755480922,-581.28,0.00014136,3]
[330750495,1719755480937,-500.0,0.00014136,3]
[330750496,1719755480947,-812.74,0.00014136,3]
[330750497,1719755480956,-500.0,0.00014136,3]
[330750498,1719755480966,-701.39,0.00014136,3]
[330750499,1719755480975,-620.73,0.00014136,3]
[330750500,1719755480984,-500.0,0.00014136,3]
[330750501,1719755480996,-265.31,0.00014136,3]
[330750502,1719755481006,-500.0,0.00014136,3]
[330750503,1719755481015,-500.0,0.00014136,3]
[330750504,1719755481024,-500.0,0.00014136,3]
[330750505,1719755481034,-188.75,0.00014136,2]
[330750506,1719755481043,-553.86,0.00014136,3]
[330750507,1719755481052,-188.75,0.00014136,2]
[330750508,1719755481062,-500.0,0.00014136,3]
[330750509,1719755481071,-151.0,0.00014136,2]
[330750510,1719755481081,-500.0,0.00014136,3]
[330750511,1719755481091,-500.0,0.00014136,3]
[330750512,1719755481100,-621.88,0.00014136,3]
[330750513,1719755481110,-500.0,0.00014136,3]
[330750514,1719755481119,-500.0,0.00014136,3]
[330750515,1719755481128,-151.0,0.00014136,2]
[330750516,1719755481138,-500.0,0.00014136,3]
[330750517,1719755481147,-612.92,0.00014136,3]
[330750518,1719755481156,-500.0,0.00014136,3]
[330750519,1719755481165,-478.77044106,0.00014136,3]
[330750520,1719755481180,-151.0,0.00014136,2]
[330750521,1719755481190,-1832.16,0.00014136,3]
[330750522,1719755481199,-681.93,0.00014136,3]
[330750523,1719755481208,-1755.82,0.00014136,3]
[330750524,1719755481218,-562.52,0.00014136,3]
[330750525,1719755481227,-500.0,0.00014136,3]
[330750526,1719755481237,-500.0,0.00014136,3]
[330750527,1719755481250,-500.0,0.00014136,3]
[330750528,1719755481260,-500.0,0.00014136,3]
[330750529,1719755481269,-151.0,0.00014136,2]
[330750530,1719755481279,-1263.58,0.00014136,3]
[330750531,1719755481289,-500.0,0.00014136,3]
[330750532,1719755481299,-757.31,0.00014136,3]
[330750533,1719755481308,-500.0,0.00014136,3]
[330750534,1719755481318,-1210.93,0.00014136,3]
[330750535,1719755481328,-631.07,0.00014136,3]
[330750536,1719755481338,-656.95,0.00014136,3]
[330750537,1719755481347,-738.1,0.00014136,3]
[330750538,1719755481357,-500.0,0.00014136,3]
[330750539,1719755481368,-500.0,0.00014136,3]
[330750540,1719755481377,-561.72,0.00014136,3]
[330750541,1719755481387,-500.0,0.00014136,3]
[330750542,1719755481397,-576.94,0.00014136,3]
[330750543,1719755481407,-500.0,0.00014136,3]
[330750544,1719755481416,-500.0,0.00014136,3]
[330750545,1719755481430,-523.20159689,0.00014136,3]
[330750546,1719755481439,-748.82,0.00014136,3]
[330750547,1719755481448,-513.03,0.00014136,3]
[330750548,1719755481458,-151.0,0.00014136,2]
[330750549,1719755481467,-500.0,0.00014136,3]
[330750550,1719755481476,-500.0,0.00014136,3]
[330750551,1719755481485,-623.674199,0.00014136,2]
[330750552,1719755481495,-500.0,0.00014136,3]
[330750553,1719755481504,-623.674199,0.00014136,2]
[330750554,1719755481515,-851.99,0.00014136,3]
[330750555,1719755481524,-590.03,0.00014136,3]
[330750556,1719755481620,-704.42,0.00014136,3]
[330750557,1719755481631,-1993.43,0.00014136,3]
[330750558,1719755481640,-525.63,0.00014136,3]
[330750559,1719755481650,-500.0,0.00014136,3]
[330750560,1719755481660,-500.0,0.00014136,3]
[330750561,1719755481670,-833.5,0.00014136,3]
[330750562,1719755481683,-500.0,0.00014136,3]
[330750563,1719755481692,-500.0,0.00014136,3]
[330750564,1719755481701,-500.0,0.00014136,3]
[330750565,1719755481709,-500.0,0.00014136,3]
[330750566,1719755481718,-500.0,0.00014136,3]
[330750567,1719755481727,-500.0,0.00014136,3]
[330750568,1719755481736,-500.0,0.00014136,3]
[330750569,1719755481745,-500.0,0.00014136,3]
[330750570,1719755481754,-500.0,0.00014136,3]
[330750571,1719755481764,-500.0,0.00014136,3]
[330750572,1719755481773,-500.0,0.00014136,3]
[330750573,1719755481783,-500.0,0.00014136,3]
[330750574,1719755481792,-664.06,0.00014136,3]
[330750575,1719755481801,-500.0,0.00014136,3]
[330750576,1719755481810,-565.11,0.00014136,3]
[330750577,1719755481819,-500.0,0.00014136,3]
[330750578,1719755481830,-500.0,0.00014136,3]
[330750579,1719755481839,-500.0,0.00014136,3]
[330750580,1719755481848,-519.91,0.00014136,3]
[330750581,1719755481858,-500.0,0.00014136,3]
[330750582,1719755481868,-211.455261,0.00014136,2]
[330750583,1719755481878,-500.0,0.00014136,3]
[330750584,1719755481887,-230.573438,0.00014136,2]
[330750585,1719755481896,-211.455261,0.00014136,2]
[330750586,1719755481905,-500.0,0.00014136,3]
[330750587,1719755481915,-500.0,0.00014136,3]
[330750588,1719755481929,-680.22,0.00014136,3]
[330750589,1719755481938,-763.34,0.00014136,3]
[330750590,1719755481947,-500.0,0.00014136,3]
[330750591,1719755481957,-230.573438,0.00014136,2]
[330750592,1719755481966,-417.916904,0.00014136,2]
[330750593,1719755481975,-500.0,0.00014136,3]
[330750594,1719755481985,-500.0,0.00014136,3]
[330750595,1719755481997,-500.0,0.00014136,3]
[330750596,1719755482006,-417.916904,0.00014136,2]
[330750597,1719755482016,-502.66,0.00014136,3]
[330750598,1719755482025,-500.0,0.00014136,3]
[330750599,1719755482034,-500.0,0.00014136,3]
[330750600,1719755482044,-657.33,0.00014136,3]
[330750601,1719755482053,-500.0,0.00014136,3]
[330750602,1719755482062,-726.36,0.00014136,3]
[330750603,1719755482071,-151.0,0.00014136,2]
[330750604,1719755482080,-500.0,0.00014136,3]
[330750605,1719755482089,-500.0,0.00014136,3]
[330750606,1719755482099,-500.0,0.00014136,3]
[330750607,1719755482107,-151.0,0.00014136,2]
[330750608,1719755482117,-1038.06,0.00014136,3]
[330750609,1719755482126,-588.22,0.00014136,3]
[330750610,1719755482135,-151.0,0.00014136,2]
[330750611,1719755482145,-581.82,0.00014136,3]
[330750612,1719755482154,-500.0,0.00014136,3]
[330750613,1719755482164,-500.0,0.00014136,3]
[330750614,1719755482173,-500.0,0.00014136,3]
[330750615,1719755482185,-516.57587794,0.00014136,3]
[330750616,1719755482194,-500.0,0.00014136,3]
[330750617,1719755482203,-500.0,0.00014136,3]
[330750618,1719755482211,-500.0,0.00014136,3]
[330750619,1719755482220,-623.056921,0.00014136,2]
[330750620,1719755482230,-871.16,0.00014136,3]
[330750621,1719755482239,-500.0,0.00014136,3]
[330750622,1719755482248,-623.056921,0.00014136,2]
[330750623,1719755482257,-500.0,0.00014136,3]
[330750624,1719755482266,-1237.1,0.00014136,3]
[330750625,1719755482276,-500.0,0.00014136,3]
[330750626,1719755482285,-978.48,0.00014136,3]
[330750627,1719755482295,-500.0,0.00014136,3]
[330750628,1719755482305,-298.05,0.00014136,3]
[330750629,1719755482314,-190.505494,0.00014136,2]
[330750630,1719755482324,-647.7,0.00014136,3]
[330750631,1719755482334,-515.55,0.00014136,3]
[330750632,1719755482343,-503.58,0.00014136,3]
[330750633,1719755482353,-190.505494,0.00014136,2]
[330750634,1719755482362,-500.0,0.00014136,3]
[330750635,1719755482372,-500.0,0.00014136,3]
[330750636,1719755482381,-568.53,0.00014136,3]
[330750637,1719755482391,-727.04,0.00014136,3]
[330750638,1719755482400,-731.31,0.00014136,3]
[330750639,1719755482410,-1021.286789,0.00014136,2]
[330750640,1719755482419,-1021.286789,0.00014136,2]
[330750641,1719755482430,-568.17365072,0.00014136,3]
[330750642,1719755482439,-500.0,0.00014136,3]
[330750643,1719755482448,-845.38,0.00014136,3]
[330750644,1719755482457,-500.0,0.00014136,3]
[330750645,1719755482466,-445.294759,0.00014136,2]
[330750646,1719755482476,-653.03,0.00014136,3]
[330750647,1719755482485,-445.294759,0.00014136,2]
[330750648,1719755482494,-1124.32,0.00014136,3]
[330750649,1719755482503,-500.0,0.00014136,3]
[330750650,1719755482512,-500.0,0.00014136,3]
[330750651,1719755482522,-518.38,0.00014136,3]
[330750652,1719755482531,-250.0,0.00014136,3]
[330750653,1719755482541,-680.8,0.00014136,3]
[330750654,1719755482550,-151.0,0.00014136,2]
[330750655,1719755482559,-500.0,0.00014136,3]
[330750656,1719755482568,-1020.54,0.00014136,3]
[330750657,1719755482580,-500.0,0.00014136,3]
[330750658,1719755482593,-500.0,0.00014136,3]
[330750659,1719755482603,-500.0,0.00014136,3]
[330750660,1719755482612,-500.0,0.00014136,3]
[330750661,1719755482623,-786.17,0.00014136,3]
[330750662,1719755482632,-500.0,0.00014136,3]
[330750663,1719755482640,-500.0,0.00014136,3]
[330750664,1719755482650,-500.0,0.00014136,2]
[330750665,1719755482659,-500.0,0.00014136,3]
[330750666,1719755482669,-582.78,0.00014136,3]
[330750667,1719755482681,-544.15,0.00014136,3]
[330750668,1719755482690,-500.0,0.00014136,3]
[330750669,1719755482700,-500.0,0.00014136,3]
[330750670,1719755482710,-4117.59,0.00014136,3]
[330750671,1719755482720,-437.423639,0.00014136,2]
[330750672,1719755482729,-240.24,0.00014136,3]
[330750673,1719755482739,-500.0,0.00014136,3]
[330750674,1719755482748,-245.4,0.00014136,3]
[330750675,1719755482757,-500.0,0.00014136,3]
[330750676,1719755482767,-613.82,0.00014136,3]
[330750677,1719755482776,-500.0,0.00014136,3]
[330750678,1719755482786,-437.423639,0.00014136,2]
[330750679,1719755482795,-9703.03304,0.00014136,2]
[330750680,1719755482805,-230.305039,0.00014136,2]
[330750681,1719755482814,-766.18,0.00014136,3]
[330750682,1719755482824,-9703.033044,0.00014136,2]
[330750683,1719755482833,-500.0,0.00014136,3]
[330750684,1719755482844,-842.1,0.00014136,3]
[330750685,1719755482853,-230.305047,0.00014136,2]
[330750686,1719755482862,-563.21,0.00014136,3]
[330750687,1719755482871,-500.0,0.00014136,3]
[330750688,1719755482881,-500.0,0.00014136,3]
[330750689,1719755482890,-500.0,0.00014136,3]
[330750690,1719755482899,-500.0,0.00014136,3]
[330750691,1719755482909,-500.0,0.00014136,3]
[330750692,1719755482919,-500.0,0.00014136,3]
[330750693,1719755482929,-500.0,0.00014136,3]
[330750694,1719755482938,-500.0,0.00014136,3]
[330750695,1719755482948,-933.76,0.00014136,3]
[330750696,1719755482957,-500.0,0.00014136,3]
[330750697,1719755482967,-608.70402123,0.00014136,3]
[330750698,1719755482976,-500.0,0.00014136,3]
[330750699,1719755482986,-500.0,0.00014136,3]
[330750700,1719755482995,-1403.52,0.00014136,3]
[330750701,1719755483004,-500.0,0.00014136,3]
[330750702,1719755483014,-500.0,0.00014136,3]
[330750703,1719755483025,-500.0,0.00014136,3]
[330750704,1719755483034,-534.11,0.00014136,3]
[330750705,1719755483044,-500.0,0.00014136,3]
[330750706,1719755483053,-500.0,0.00014136,3]
[330750707,1719755483063,-500.0,0.00014136,3]
[330750708,1719755483072,-500.0,0.00014136,3]
[330750709,1719755483082,-500.0,0.00014136,3]
[330750710,1719755483092,-503.060598,0.00014136,2]
[330750711,1719755483101,-500.0,0.00014136,3]
[330750712,1719755483111,-304.780686,0.00014136,2]
[330750713,1719755483121,-648.58,0.00014136,3]
[330750714,1719755483131,-503.060599,0.00014136,2]
[330750715,1719755483140,-668.63,0.00014136,3]
[330750716,1719755483149,-500.0,0.00014136,3]
[330750717,1719755483159,-518.15,0.00014136,3]
[330750718,1719755483168,-573.903452,0.00014136,2]
[330750719,1719755483179,-1137.4,0.00014136,3]
[330750720,1719755483188,-500.0,0.00014136,3]
[330750721,1719755483198,-304.780683,0.00014136,2]
[330750722,1719755483207,-1083.957781,0.00014136,2]
[330750723,1719755483216,-573.903452,0.00014136,2]
[330750724,1719755483226,-500.0,0.00014136,3]
[330750725,1719755483235,-1083.957773,0.00014136,2]
[330750726,1719755483245,-750.23,0.00014136,3]
[330750727,1719755483254,-500.0,0.00014136,3]
[330750728,1719755483263,-500.0,0.00014136,3]
[330750729,1719755483273,-565.47,0.00014136,3]
[330750730,1719755483282,-964.26,0.00014136,3]
[330750731,1719755483291,-500.0,0.00014136,3]
[330750732,1719755483300,-500.0,0.00014136,3]
[330750733,1719755483310,-502.48,0.00014136,3]
[330750734,1719755483319,-500.0,0.00014136,3]
[330750735,1719755483327,-905.38,0.00014136,3]
[330750736,1719755483336,-762.19,0.00014136,3]
[330750737,1719755483346,-1355.12,0.00014136,3]
[330750738,1719755483355,-500.0,0.00014136,3]
[330750739,1719755483364,-500.0,0.00014136,3]
[330750740,1719755483374,-267.298398,0.00014136,2]
[330750741,1719755483383,-500.0,0.00014136,3]
[330750742,1719755483392,-500.0,0.00014136,3]
[330750743,1719755483401,-662.1,0.00014136,3]
[330750744,1719755483410,-151.0,0.00014136,2]
[330750745,1719755483419,-267.298407,0.00014136,2]
[330750746,1719755483429,-500.0,0.00014136,3]
[330750747,1719755483438,-151.0,0.00014136,2]
[330750748,1719755483447,-765.23,0.00014136,3]
[330750749,1719755483457,-690.29,0.00014136,3]
[330750750,1719755483466,-877.24,0.00014136,3]
[330750751,1719755483475,-500.0,0.00014136,3]
[330750752,1719755483484,-713.88,0.00014136,3]
[330750753,1719755483494,-231.851772,0.00014136,2]
[330750754,1719755483504,-500.0,0.00014136,3]
[330750755,1719755483513,-500.0,0.00014136,3]
[330750756,1719755483523,-1457.02,0.00014136,3]
[330750757,1719755483532,-2125.733205,0.00014136,2]
[330750758,1719755483542,-231.851769,0.00014136,2]
[330750759,1719755483551,-500.0,0.00014136,3]
[330750760,1719755483560,-2125.733197,0.00014136,2]
[330750761,1719755483570,-1059.53,0.00014136,3]
[330750762,1719755483579,-639.03,0.00014136,3]
[330750763,1719755483594,-405.042875,0.00014136,2]
[330750764,1719755483603,-1241.5,0.00014136,3]
[330750765,1719755483612,-500.0,0.00014136,3]
[330750766,1719755483623,-405.042875,0.00014136,2]
[330750767,1719755483634,-500.0,0.00014136,3]
[330750768,1719755483643,-500.0,0.00014136,3]
[330750769,1719755483653,-500.0,0.00014136,3]
[330750770,1719755483663,-737.63,0.00014136,3]
[330750771,1719755483673,-500.0,0.00014136,3]
[330750772,1719755483684,-1349.88,0.00014136,3]
[330750773,1719755483693,-151.0,0.00014136,2]
[330750774,1719755483702,-500.0,0.00014136,3]
[330750775,1719755483712,-500.0,0.00014136,3]
[330750776,1719755483722,-500.0,0.00014136,3]
[330750777,1719755483732,-561.34,0.00014136,3]
[330750778,1719755483741,-604.72,0.00014136,3]
[330750779,1719755483751,-500.0,0.00014136,3]
[330750780,1719755483760,-329.26364793,0.00014136,3]
[330750781,1719755483769,-500.0,0.00014136,3]
[330750782,1719755483778,-957.39,0.00014136,3]
[330750783,1719755483787,-500.0,0.00014136,3]
[330750784,1719755483796,-191.133074,0.00014136,2]
[330750785,1719755483806,-764.6,0.00014136,3]
[330750786,1719755483815,-660.46,0.00014136,3]
[330750787,1719755483824,-500.0,0.00014136,3]
[330750788,1719755483833,-191.133065,0.00014136,2]
[330750789,1719755483843,-604.79,0.00014136,3]
[330750790,1719755483852,-409.83,0.00014136,3]
[330750791,1719755483861,-905.53,0.00014136,3]
[330750792,1719755483870,-500.0,0.00014136,3]
[330750793,1719755483880,-526.22,0.00014136,3]
[330750794,1719755483889,-500.0,0.00014136,3]
[330750795,1719755483899,-229.488912,0.00014136,2]
[330750796,1719755483908,-500.0,0.00014136,3]
[330750797,1719755483917,-229.488904,0.00014136,2]
[330750798,1719755483926,-500.0,0.00014136,3]
[330750799,1719755483936,-500.0,0.00014136,3]
[330750800,1719755483945,-622.84,0.00014136,3]
[330750801,1719755483954,-1277.66,0.00014136,3]
[330750802,1719755483963,-500.0,0.00014136,3]
[330750803,1719755483973,-500.0,0.00014136,3]
[330750804,1719755483982,-1641.91,0.00014136,3]
[330750805,1719755483993,-500.0,0.00014136,3]
[330750806,1719755484003,-172.55,0.00014136,3]
[330750807,1719755484013,-707.52,0.00014136,3]
[330750808,1719755484023,-500.0,0.00014136,3]
[330750809,1719755484033,-151.0,0.00014136,2]
[330750810,1719755484043,-616.94,0.00014136,3]
[330750811,1719755484053,-500.0,0.00014136,3]
[330750812,1719755484063,-1304.99,0.00014136,3]
[330750813,1719755484073,-620.52,0.00014136,3]
[330750814,1719755484083,-500.0,0.00014136,3]
[330750815,1719755484093,-500.0,0.00014136,3]
[330750816,1719755484103,-500.0,0.00014136,3]
[330750817,1719755484114,-500.0,0.00014136,3]
[330750818,1719755484123,-721.33,0.00014136,3]
[330750819,1719755484133,-500.0,0.00014136,3]
[330750820,1719755484143,-504.24,0.00014136,3]
[330750821,1719755484153,-700.83,0.00014136,3]
[330750822,1719755484163,-832.16,0.00014136,3]
[330750823,1719755484174,-500.0,0.00014136,3]
[330750824,1719755484184,-614.4,0.00014136,3]
[330750825,1719755484194,-500.0,0.00014136,3]
[330750826,1719755484204,-151.0,0.00014136,2]
[330750827,1719755484214,-500.0,0.00014136,3]
[330750828,1719755484225,-1044.88,0.00014136,3]
[330750829,1719755484235,-191.884164,0.00014136,2]
[330750830,1719755484245,-500.0,0.00014136,3]
[330750831,1719755484255,-151.0,0.00014136,2]
[330750832,1719755484264,-191.884162,0.00014136,2]
[330750833,1719755484274,-500.0,0.00014136,3]
[330750834,1719755484284,-508.002238,0.00014136,2]
[330750835,1719755484294,-507.13,0.00014136,3]
[330750836,1719755484304,-500.0,0.00014136,3]
[330750837,1719755484314,-500.0,0.00014136,3]
[330750838,1719755484324,-500.0,0.00014136,3]
[330750839,1719755484334,-508.002228,0.00014136,2]